[Event "December 5 Early 2023"]
[Site "https://www.chess.com"]
[Date "2023.12.05"]
[Round "2"]
[White "Matthes, Aaron"]
[Black "Komov, Roman"]
[Result "1-0"]
[Board "143"]
[TimeControl "180+1"]
[WhiteFideId "16227310"]
[BlackFideId "24175714"]
[WhiteElo "2400"]
[BlackElo "2715"]
[WhiteTeam "GER"]
[BlackTeam "RUS"]
[WhiteClock "0:00:18"]
[BlackClock "0:00:59"]

1. Nf3 {[%clk 0:03:00]}  d5 {[%clk 0:03:00]} 2. g3 {[%clk 0:02:59]}  Nf6 {[%clk 0:03:00]} 3. Bg2 {[%clk 0:03:00]}  c5 {[%clk 0:03:01]} 4. O-O {[%clk 0:03:00]}  e6 {[%clk 0:03:01]} 5. d4 {[%clk 0:02:59]}  cxd4 {[%clk 0:03:02]} 6. Nxd4 {[%clk 0:02:59]}  e5 {[%clk 0:03:03]} 7. Nf3 {[%clk 0:02:59]}  Nc6 {[%clk 0:03:03]} 8. Bg5 {[%clk 0:02:55]}  Be6 {[%clk 0:03:03]} 9. Nbd2 {[%clk 0:02:50]}  Be7 {[%clk 0:03:01]} 10. c3 {[%clk 0:02:44]}  h6 {[%clk 0:02:57]} 11. Bxf6 {[%clk 0:02:44]}  Bxf6 {[%clk 0:02:58]} 12. e4 {[%clk 0:02:43]}  O-O {[%clk 0:02:56]} 13. Re1 {[%clk 0:02:38]}  d4 {[%clk 0:02:48]} 14. c4 {[%clk 0:02:35]}  Be7 {[%clk 0:02:44]} 15. a3 {[%clk 0:02:28]}  a5 {[%clk 0:02:44]} 16. Rc1 {[%clk 0:02:14]}  a4 {[%clk 0:02:40]} 17. Rf1 {[%clk 0:02:06]}  Qb6 {[%clk 0:02:37]} 18. Qc2 {[%clk 0:02:03]}  Qa5 {[%clk 0:02:20]} 19. Ne1 {[%clk 0:01:59]}  Bg5 {[%clk 0:02:20]} 20. f4 {[%clk 0:01:55]}  exf4 {[%clk 0:02:15]} 21. gxf4 {[%clk 0:01:56]}  Be7 {[%clk 0:02:16]} 22. Nd3 {[%clk 0:01:55]}  f5 {[%clk 0:02:14]} 23. e5 {[%clk 0:01:48]}  g5 {[%clk 0:02:14]} 24. Kh1 {[%clk 0:01:25]}  g4 {[%clk 0:02:14]} 25. Qd1 {[%clk 0:01:14]}  Kg7 {[%clk 0:02:09]} 26. Qe2 {[%clk 0:01:00]}  h5 {[%clk 0:02:08]} 27. c5 {[%clk 0:00:53]}  Qb5 {[%clk 0:02:04]} 28. Rc2 {[%clk 0:00:48]}  Rfd8 {[%clk 0:01:57]} 29. Rfc1 {[%clk 0:00:48]}  Rac8 {[%clk 0:01:41]} 30. Nc4 {[%clk 0:00:42]}  Bxc5 {[%clk 0:01:29]} 31. Nxc5 {[%clk 0:00:42]}  Qxc5 {[%clk 0:01:25]} 32. Nd6 {[%clk 0:00:40]}  Qa5 {[%clk 0:01:14]} 33. Qd3 {[%clk 0:00:30]}  Nxe5 {[%clk 0:01:05]} 34. fxe5 {[%clk 0:00:27]}  Rxc2 {[%clk 0:01:05]} 35. Qxc2 {[%clk 0:00:22]}  Qxe5 {[%clk 0:01:04]} 36. Qc7+ {[%clk 0:00:19]}  Rd7 {[%clk 0:00:59]} 37. Ne8+ {[%clk 0:00:18]} 1-0

[Event "December 5 Early 2023"]
[Site "https://www.chess.com"]
[Date "2023.12.05"]
[Round "2"]
[White "Sadubayev, Airat"]
[Black "Federzoni, Enzo"]
[Result "0-1"]
[Board "145"]
[TimeControl "180+1"]
[WhiteFideId "13713264"]
[BlackFideId "2173301"]
[WhiteElo "2695"]
[BlackElo "2398"]
[WhiteTeam "KAZ"]
[BlackTeam "BRA"]
[WhiteClock "0:00:11"]
[BlackClock "0:01:25"]

1. d4 {[%clk 0:03:00]}  Nf6 {[%clk 0:02:56]} 2. c4 {[%clk 0:03:00]}  e6 {[%clk 0:02:56]} 3. Nf3 {[%clk 0:02:59]}  d5 {[%clk 0:02:56]} 4. Nc3 {[%clk 0:02:59]}  Be7 {[%clk 0:02:56]} 5. Bf4 {[%clk 0:02:59]}  O-O {[%clk 0:02:56]} 6. e3 {[%clk 0:02:59]}  Nbd7 {[%clk 0:02:55]} 7. c5 {[%clk 0:02:44]}  c6 {[%clk 0:02:50]} 8. b4 {[%clk 0:02:39]}  a5 {[%clk 0:02:50]} 9. b5 {[%clk 0:02:32]}  Nh5 {[%clk 0:02:38]} 10. Bg3 {[%clk 0:02:27]}  Nxg3 {[%clk 0:02:37]} 11. hxg3 {[%clk 0:02:27]}  Bf6 {[%clk 0:02:37]} 12. Bd3 {[%clk 0:02:24]}  g6 {[%clk 0:02:36]} 13. Qc2 {[%clk 0:01:59]}  e5 {[%clk 0:02:35]} 14. bxc6 {[%clk 0:01:44]}  bxc6 {[%clk 0:02:34]} 15. e4 {[%clk 0:01:37]}  exd4 {[%clk 0:02:30]} 16. Ne2 {[%clk 0:01:36]}  dxe4 {[%clk 0:02:29]} 17. Bxe4 {[%clk 0:01:18]}  Re8 {[%clk 0:02:27]} 18. Bd3 {[%clk 0:01:14]}  Ba6 {[%clk 0:02:12]} 19. Rd1 {[%clk 0:01:06]}  Bxd3 {[%clk 0:02:09]} 20. Rxd3 {[%clk 0:01:07]}  Qe7 {[%clk 0:02:05]} 21. Nxd4 {[%clk 0:01:00]}  Bxd4 {[%clk 0:02:04]} 22. Rxd4 {[%clk 0:01:01]}  Nxc5 {[%clk 0:02:04]} 23. Rdh4 {[%clk 0:01:00]}  h5 {[%clk 0:01:50]} 24. g4 {[%clk 0:00:50]}  Rab8 {[%clk 0:01:46]} 25. R4h3 {[%clk 0:00:20]}  Qxe2+ {[%clk 0:01:37]} 26. Qxe2 {[%clk 0:00:20]}  Rb1+ {[%clk 0:01:38]} 27. Kd2 {[%clk 0:00:19]}  Rb2+ {[%clk 0:01:38]} 28. Kc3 {[%clk 0:00:20]}  Rexe2 {[%clk 0:01:36]} 29. gxh5 {[%clk 0:00:21]}  Ne4+ {[%clk 0:01:31]} 30. Kd3 {[%clk 0:00:20]}  Nxf2+ {[%clk 0:01:29]} 31. Kd4 {[%clk 0:00:20]}  Nxh3 {[%clk 0:01:27]} 32. Rxh3 {[%clk 0:00:21]}  gxh5 {[%clk 0:01:28]} 33. g4 {[%clk 0:00:19]}  hxg4 {[%clk 0:01:26]} 34. Rg3 {[%clk 0:00:20]}  Rbd2+ {[%clk 0:01:24]} 35. Kc5 {[%clk 0:00:19]}  f5 {[%clk 0:01:25]} 36. Kxc6 {[%clk 0:00:18]}  Rxa2 {[%clk 0:01:25]} 37. Rd3 {[%clk 0:00:11]}  Rad2 {[%clk 0:01:25]} 0-1

[Event "December 5 Early 2023"]
[Site "https://www.chess.com"]
[Date "2023.12.05"]
[Round "2"]
[White "Tasev, Dejan"]
[Black "Barath1308"]
[Result "1-0"]
[Board "148"]
[TimeControl "180+1"]
[WhiteFideId "936618"]
[WhiteElo "2667"]
[BlackElo "2389"]
[WhiteTeam "SRB"]
[WhiteClock "0:01:11"]
[BlackClock "0:00:00"]

1. e4 {[%clk 0:03:00]}  c5 {[%clk 0:02:59]} 2. Nf3 {[%clk 0:03:00]}  d6 {[%clk 0:02:59]} 3. Nc3 {[%clk 0:02:59]}  a6 {[%clk 0:02:57]} 4. d4 {[%clk 0:02:59]}  cxd4 {[%clk 0:02:58]} 5. Nxd4 {[%clk 0:03:00]}  Nf6 {[%clk 0:02:58]} 6. Bc4 {[%clk 0:03:00]}  e6 {[%clk 0:02:58]} 7. Bb3 {[%clk 0:03:00]}  b5 {[%clk 0:02:51]} 8. a3 {[%clk 0:03:00]}  Bb7 {[%clk 0:02:47]} 9. f3 {[%clk 0:03:00]}  Nbd7 {[%clk 0:02:46]} 10. Be3 {[%clk 0:02:59]}  Nc5 {[%clk 0:02:46]} 11. Ba2 {[%clk 0:02:59]}  Rc8 {[%clk 0:02:43]} 12. Qd2 {[%clk 0:02:59]}  Qc7 {[%clk 0:02:22]} 13. O-O-O {[%clk 0:02:58]}  Be7 {[%clk 0:02:21]} 14. g4 {[%clk 0:02:57]}  O-O {[%clk 0:02:08]} 15. h4 {[%clk 0:02:57]}  Nfd7 {[%clk 0:02:05]} 16. g5 {[%clk 0:02:56]}  Nb6 {[%clk 0:01:51]} 17. h5 {[%clk 0:02:51]}  Nc4 {[%clk 0:00:44]} 18. Bxc4 {[%clk 0:02:50]}  bxc4 {[%clk 0:00:45]} 19. g6 {[%clk 0:02:50]}  Bf6 {[%clk 0:00:35]} 20. h6 {[%clk 0:02:31]}  fxg6 {[%clk 0:00:33]} 21. hxg7 {[%clk 0:02:30]}  Bxg7 {[%clk 0:00:32]} 22. Qh2 {[%clk 0:02:25]}  Bf6 {[%clk 0:00:22]} 23. Rdg1 {[%clk 0:02:20]}  d5 {[%clk 0:00:11]} 24. Qh3 {[%clk 0:01:58]}  Qf7 {[%clk 0:00:08]} 25. exd5 {[%clk 0:01:37]}  exd5 {[%clk 0:00:07]} 26. Nf5 {[%clk 0:01:29]}  Qd7 {[%clk 0:00:07]} 27. Bxc5 {[%clk 0:01:17]}  Bxc3 {[%clk 0:00:06]} 28. Nh6+ {[%clk 0:01:15]}  Kh8 {[%clk 0:00:04]} 29. Qxd7 {[%clk 0:01:15]}  Rxc5 {[%clk 0:00:00]} 30. bxc3 {[%clk 0:01:11]} 1-0

[Event "December 5 Early 2023"]
[Site "https://www.chess.com"]
[Date "2023.12.05"]
[Round "2"]
[White "Batbold, Nyamsuren"]
[Black "Belov, Alexei"]
[Result "0-1"]
[Board "152"]
[TimeControl "180+1"]
[WhiteFideId "4903331"]
[BlackFideId "4128206"]
[WhiteElo "2371"]
[BlackElo "2649"]
[WhiteTeam "MGL"]
[BlackTeam "RUS"]
[WhiteClock "0:00:09"]
[BlackClock "0:00:27"]

1. d4 {[%clk 0:03:00]}  d5 {[%clk 0:02:57]} 2. Nf3 {[%clk 0:03:00]}  e6 {[%clk 0:02:56]} 3. c4 {[%clk 0:03:00]}  Nf6 {[%clk 0:02:56]} 4. g3 {[%clk 0:02:59]}  Be7 {[%clk 0:02:56]} 5. Bg2 {[%clk 0:02:59]}  O-O {[%clk 0:02:56]} 6. O-O {[%clk 0:03:00]}  dxc4 {[%clk 0:02:56]} 7. a4 {[%clk 0:03:01]}  Bd7 {[%clk 0:02:54]} 8. Qc2 {[%clk 0:03:01]}  Bc6 {[%clk 0:02:52]} 9. Qxc4 {[%clk 0:02:59]}  Bd5 {[%clk 0:02:49]} 10. Qc2 {[%clk 0:02:59]}  Nc6 {[%clk 0:02:48]} 11. Nc3 {[%clk 0:02:59]}  Bxf3 {[%clk 0:02:42]} 12. exf3 {[%clk 0:02:52]}  Nxd4 {[%clk 0:02:42]} 13. Qd1 {[%clk 0:02:46]}  c6 {[%clk 0:02:38]} 14. Be3 {[%clk 0:02:43]}  Nf5 {[%clk 0:02:37]} 15. Qc1 {[%clk 0:02:42]}  Nxe3 {[%clk 0:02:34]} 16. Qxe3 {[%clk 0:02:43]}  Qa5 {[%clk 0:02:29]} 17. f4 {[%clk 0:02:41]}  Bc5 {[%clk 0:02:17]} 18. Qe2 {[%clk 0:02:41]}  Rfd8 {[%clk 0:02:13]} 19. g4 {[%clk 0:02:38]}  Qb4 {[%clk 0:02:06]} 20. Qf3 {[%clk 0:02:19]}  Nd5 {[%clk 0:01:51]} 21. Ne4 {[%clk 0:02:16]}  Bb6 {[%clk 0:01:35]} 22. f5 {[%clk 0:02:07]}  exf5 {[%clk 0:01:33]} 23. gxf5 {[%clk 0:02:07]}  Bd4 {[%clk 0:01:22]} 24. Rad1 {[%clk 0:02:01]}  Nf6 {[%clk 0:01:15]} 25. Ng5 {[%clk 0:01:35]}  Bxb2 {[%clk 0:01:06]} 26. Rb1 {[%clk 0:01:34]}  Rd2 {[%clk 0:01:04]} 27. Rfd1 {[%clk 0:01:24]}  Rad8 {[%clk 0:00:50]} 28. Rxd2 {[%clk 0:01:23]}  Rxd2 {[%clk 0:00:49]} 29. Qg3 {[%clk 0:01:08]}  h6 {[%clk 0:00:46]} 30. Qb8+ {[%clk 0:00:32]}  Qf8 {[%clk 0:00:46]} 31. Qxf8+ {[%clk 0:00:32]}  Kxf8 {[%clk 0:00:47]} 32. Nf3 {[%clk 0:00:27]}  Rc2 {[%clk 0:00:47]} 33. Bf1 {[%clk 0:00:23]}  b6 {[%clk 0:00:41]} 34. Rd1 {[%clk 0:00:19]}  Rc1 {[%clk 0:00:39]} 35. Rd6 {[%clk 0:00:18]}  Ke7 {[%clk 0:00:38]} 36. Rd3 {[%clk 0:00:18]}  Nd5 {[%clk 0:00:37]} 37. Nd2 {[%clk 0:00:17]}  Be5 {[%clk 0:00:30]} 38. Kg2 {[%clk 0:00:16]}  Ra1 {[%clk 0:00:29]} 39. Rb3 {[%clk 0:00:14]}  c5 {[%clk 0:00:28]} 40. Nc4 {[%clk 0:00:13]}  Bc7 {[%clk 0:00:28]} 41. a5 {[%clk 0:00:12]}  Nf4+ {[%clk 0:00:28]} 42. Kf3 {[%clk 0:00:12]}  Rxf1 {[%clk 0:00:26]} 43. axb6 {[%clk 0:00:12]}  axb6 {[%clk 0:00:27]} 44. Nxb6 {[%clk 0:00:12]}  Bxb6 {[%clk 0:00:26]} 45. Rxb6 {[%clk 0:00:12]}  Nd3 {[%clk 0:00:26]} 46. Rb7+ {[%clk 0:00:09]}  Kf6 {[%clk 0:00:27]} 0-1

[Event "December 5 Early 2023"]
[Site "https://www.chess.com"]
[Date "2023.12.05"]
[Round "2"]
[White "Banzea, Alexandru-Bogdan"]
[Black "Kleibel, Uwe"]
[Result "1-0"]
[Board "153"]
[TimeControl "180+1"]
[WhiteFideId "1232622"]
[BlackFideId "1270982"]
[WhiteElo "2647"]
[BlackElo "2371"]
[WhiteTeam "ROU"]
[BlackTeam "GER"]
[WhiteClock "0:01:31"]
[BlackClock "0:00:15"]

1. d4 {[%clk 0:03:00]}  d5 {[%clk 0:02:56]} 2. Nc3 {[%clk 0:03:01]}  Nf6 {[%clk 0:02:54]} 3. Bf4 {[%clk 0:03:02]}  e6 {[%clk 0:02:54]} 4. Nb5 {[%clk 0:03:02]}  Bb4+ {[%clk 0:02:51]} 5. c3 {[%clk 0:03:02]}  Ba5 {[%clk 0:02:51]} 6. e3 {[%clk 0:03:02]}  O-O {[%clk 0:02:51]} 7. Nf3 {[%clk 0:03:01]}  a6 {[%clk 0:02:51]} 8. Na3 {[%clk 0:03:02]}  Nbd7 {[%clk 0:02:49]} 9. Nb1 {[%clk 0:03:02]}  Bb6 {[%clk 0:02:47]} 10. Nbd2 {[%clk 0:03:00]}  c5 {[%clk 0:02:46]} 11. Bd3 {[%clk 0:03:01]}  Re8 {[%clk 0:02:40]} 12. Ne5 {[%clk 0:03:01]}  Nxe5 {[%clk 0:02:33]} 13. dxe5 {[%clk 0:03:01]}  Nd7 {[%clk 0:02:33]} 14. Qh5 {[%clk 0:02:51]}  Nf8 {[%clk 0:02:27]} 15. Nf3 {[%clk 0:02:46]}  f6 {[%clk 0:01:48]} 16. h4 {[%clk 0:02:08]}  Bd7 {[%clk 0:01:13]} 17. Rh3 {[%clk 0:02:05]}  Bb5 {[%clk 0:01:10]} 18. Bc2 {[%clk 0:02:00]}  Rc8 {[%clk 0:01:01]} 19. Rg3 {[%clk 0:01:58]}  f5 {[%clk 0:00:48]} 20. Bg5 {[%clk 0:01:45]}  Qd7 {[%clk 0:00:44]} 21. Bf6 {[%clk 0:01:45]}  g6 {[%clk 0:00:41]} 22. Qh6 {[%clk 0:01:45]}  Bd8 {[%clk 0:00:26]} 23. h5 {[%clk 0:01:37]}  Bxf6 {[%clk 0:00:26]} 24. exf6 {[%clk 0:01:33]}  Qf7 {[%clk 0:00:20]} 25. hxg6 {[%clk 0:01:31]}  hxg6 {[%clk 0:00:20]} 26. Ne5 {[%clk 0:01:31]}  Qxf6 {[%clk 0:00:15]} 27. Nxg6 {[%clk 0:01:31]} 1-0

[Event "December 5 Early 2023"]
[Site "https://www.chess.com"]
[Date "2023.12.05"]
[Round "2"]
[White "Agibileg, Uurtsaikh"]
[Black "Sari, Yasin"]
[Result "0-1"]
[Board "157"]
[TimeControl "180+1"]
[WhiteFideId "4901606"]
[BlackFideId "6320902"]
[WhiteElo "2631"]
[BlackElo "2341"]
[WhiteTeam "MGL"]
[BlackTeam "TUR"]
[WhiteClock "0:00:01"]
[BlackClock "0:00:03"]

1. d4 {[%clk 0:03:00]}  d5 {[%clk 0:02:59]} 2. c4 {[%clk 0:02:59]}  c6 {[%clk 0:03:00]} 3. Nf3 {[%clk 0:02:58]}  Nf6 {[%clk 0:03:00]} 4. Nc3 {[%clk 0:02:57]}  dxc4 {[%clk 0:03:01]} 5. g3 {[%clk 0:02:55]}  g6 {[%clk 0:02:48]} 6. Bg2 {[%clk 0:02:53]}  Bg7 {[%clk 0:02:48]} 7. O-O {[%clk 0:02:52]}  O-O {[%clk 0:02:48]} 8. Ne5 {[%clk 0:02:53]}  Be6 {[%clk 0:02:46]} 9. a4 {[%clk 0:02:46]}  Nbd7 {[%clk 0:02:43]} 10. Nf3 {[%clk 0:02:13]}  Bd5 {[%clk 0:02:34]} 11. a5 {[%clk 0:02:11]}  Ne4 {[%clk 0:02:29]} 12. Qc2 {[%clk 0:01:21]}  Ndf6 {[%clk 0:02:17]} 13. Bf4 {[%clk 0:01:09]}  b5 {[%clk 0:02:00]} 14. Be5 {[%clk 0:01:07]}  Nxc3 {[%clk 0:01:50]} 15. bxc3 {[%clk 0:01:06]}  Be4 {[%clk 0:01:49]} 16. Qc1 {[%clk 0:00:55]}  Nd5 {[%clk 0:01:42]} 17. Bxg7 {[%clk 0:00:54]}  Kxg7 {[%clk 0:01:43]} 18. a6 {[%clk 0:00:53]}  Qd6 {[%clk 0:01:29]} 19. Ne5 {[%clk 0:00:30]}  Bxg2 {[%clk 0:01:29]} 20. Kxg2 {[%clk 0:00:31]}  c5 {[%clk 0:01:14]} 21. e4 {[%clk 0:00:22]}  Nf6 {[%clk 0:01:01]} 22. Qe3 {[%clk 0:00:22]}  cxd4 {[%clk 0:00:58]} 23. cxd4 {[%clk 0:00:23]}  Rfc8 {[%clk 0:00:47]} 24. Nf3 {[%clk 0:00:20]}  Ng4 {[%clk 0:00:23]} 25. Qg5 {[%clk 0:00:15]}  h5 {[%clk 0:00:24]} 26. h3 {[%clk 0:00:14]}  Nh6 {[%clk 0:00:15]} 27. d5 {[%clk 0:00:10]}  c3 {[%clk 0:00:13]} 28. Nd4 {[%clk 0:00:09]}  b4 {[%clk 0:00:08]} 29. Ne6+ {[%clk 0:00:07]}  fxe6 {[%clk 0:00:05]} 30. e5 {[%clk 0:00:06]}  Qxd5+ {[%clk 0:00:05]} 31. Kh2 {[%clk 0:00:05]}  Nf7 {[%clk 0:00:06]} 32. Qxe7 {[%clk 0:00:05]}  Kg8 {[%clk 0:00:03]} 33. Qf6 {[%clk 0:00:04]}  Qxe5 {[%clk 0:00:02]} 34. Qxg6+ {[%clk 0:00:04]}  Kf8 {[%clk 0:00:02]} 35. Rae1 {[%clk 0:00:03]}  Qf5 {[%clk 0:00:02]} 36. Qxf5 {[%clk 0:00:02]}  exf5 {[%clk 0:00:03]} 37. Re6 {[%clk 0:00:03]}  c2 {[%clk 0:00:03]} 38. Rc1 {[%clk 0:00:02]}  b3 {[%clk 0:00:03]} 39. Re2 {[%clk 0:00:02]}  b2 {[%clk 0:00:03]} 40. Rcxc2 {[%clk 0:00:01]}  Rxc2 {[%clk 0:00:03]} 0-1

[Event "December 5 Early 2023"]
[Site "https://www.chess.com"]
[Date "2023.12.05"]
[Round "2"]
[White "Eggleston, Thomas A"]
[Black "Olenik Campa, Rudi"]
[Result "0-1"]
[Board "158"]
[TimeControl "180+1"]
[WhiteFideId "412139"]
[BlackFideId "14633264"]
[WhiteElo "2340"]
[BlackElo "2600"]
[WhiteTeam "ENG"]
[BlackTeam "SLO"]
[WhiteClock "0:02:10"]
[BlackClock "0:02:28"]

1. e4 {[%clk 0:03:00]}  c5 {[%clk 0:02:58]} 2. Nf3 {[%clk 0:02:56]}  Nc6 {[%clk 0:02:58]} 3. Bb5 {[%clk 0:02:56]}  g6 {[%clk 0:02:58]} 4. Bxc6 {[%clk 0:02:55]}  dxc6 {[%clk 0:02:59]} 5. Qe2 {[%clk 0:02:52]}  Bg7 {[%clk 0:02:59]} 6. O-O {[%clk 0:02:51]}  Qc7 {[%clk 0:02:59]} 7. d3 {[%clk 0:02:50]}  h6 {[%clk 0:02:59]} 8. h3 {[%clk 0:02:50]}  g5 {[%clk 0:02:58]} 9. Nh2 {[%clk 0:02:47]}  Be5 {[%clk 0:02:57]} 10. g3 {[%clk 0:02:46]}  Bxh3 {[%clk 0:02:56]} 11. Re1 {[%clk 0:02:41]}  h5 {[%clk 0:02:43]} 12. Na3 {[%clk 0:02:37]}  b5 {[%clk 0:02:38]} 13. c4 {[%clk 0:02:36]}  h4 {[%clk 0:02:35]} 14. cxb5 {[%clk 0:02:27]}  hxg3 {[%clk 0:02:35]} 15. fxg3 {[%clk 0:02:27]}  Bd4+ {[%clk 0:02:29]} 16. Be3 {[%clk 0:02:26]}  Qxg3+ {[%clk 0:02:29]} 17. Kh1 {[%clk 0:02:22]}  Bxe3 {[%clk 0:02:29]} 18. Qxe3 {[%clk 0:02:10]}  Qg2# {[%clk 0:02:28]} 0-1

[Event "December 5 Early 2023"]
[Site "https://www.chess.com"]
[Date "2023.12.05"]
[Round "2"]
[White "Guliev, Logman"]
[Black "Napoli, Nicolo"]
[Result "1-0"]
[Board "160"]
[TimeControl "180+1"]
[WhiteFideId "13400061"]
[BlackFideId "813702"]
[WhiteElo "2595"]
[BlackElo "2338"]
[WhiteTeam "AZE"]
[BlackTeam "ITA"]
[WhiteClock "0:00:15"]
[BlackClock "0:00:00"]

1. e4 {[%clk 0:02:57]}  c6 {[%clk 0:02:52]} 2. Nf3 {[%clk 0:02:57]}  d5 {[%clk 0:02:53]} 3. Nc3 {[%clk 0:02:57]}  Bg4 {[%clk 0:02:52]} 4. h3 {[%clk 0:02:56]}  Bxf3 {[%clk 0:02:53]} 5. Qxf3 {[%clk 0:02:55]}  Nf6 {[%clk 0:02:52]} 6. d4 {[%clk 0:02:54]}  dxe4 {[%clk 0:02:47]} 7. Nxe4 {[%clk 0:02:54]}  Qxd4 {[%clk 0:02:47]} 8. Bd3 {[%clk 0:02:54]}  Nxe4 {[%clk 0:02:27]} 9. Bxe4 {[%clk 0:02:53]}  e6 {[%clk 0:02:27]} 10. Be3 {[%clk 0:02:50]}  Qf6 {[%clk 0:02:23]} 11. Qg3 {[%clk 0:02:47]}  Nd7 {[%clk 0:02:06]} 12. O-O-O {[%clk 0:02:33]}  Be7 {[%clk 0:01:25]} 13. Kb1 {[%clk 0:02:17]}  Qh4 {[%clk 0:00:59]} 14. Qc7 {[%clk 0:01:37]}  Rd8 {[%clk 0:00:15]} 15. Bf3 {[%clk 0:01:27]}  Qb4 {[%clk 0:00:10]} 16. Rd4 {[%clk 0:01:13]}  Qb5 {[%clk 0:00:05]} 17. Rhd1 {[%clk 0:01:11]}  Bf6 {[%clk 0:00:04]} 18. a4 {[%clk 0:01:01]}  Qb6 {[%clk 0:00:03]} 19. Qg3 {[%clk 0:00:33]}  Bxd4 {[%clk 0:00:03]} 20. Bxd4 {[%clk 0:00:34]}  Qa5 {[%clk 0:00:03]} 21. Qxg7 {[%clk 0:00:33]}  Rf8 {[%clk 0:00:02]} 22. Qxh7 {[%clk 0:00:23]}  c5 {[%clk 0:00:02]} 23. Bc3 {[%clk 0:00:23]}  Qb6 {[%clk 0:00:02]} 24. Bh5 {[%clk 0:00:19]}  c4 {[%clk 0:00:01]} 25. Qe4 {[%clk 0:00:17]}  Nc5 {[%clk 0:00:00]} 26. Rxd8+ {[%clk 0:00:15]} 1-0

[Event "December 5 Early 2023"]
[Site "https://www.chess.com"]
[Date "2023.12.05"]
[Round "2"]
[White "Seder, Mohammed"]
[Black "Sharapov, Evgeny"]
[Result "1-0"]
[Board "163"]
[TimeControl "180+1"]
[WhiteFideId "11505567"]
[BlackFideId "14103133"]
[WhiteElo "2336"]
[BlackElo "2554"]
[WhiteTeam "PLE"]
[BlackTeam "UKR"]
[WhiteClock "0:00:04"]
[BlackClock "0:00:20"]

1. e4 {[%clk 0:02:54]}  c5 {[%clk 0:02:59]} 2. Nf3 {[%clk 0:02:52]}  d6 {[%clk 0:02:59]} 3. Bb5+ {[%clk 0:02:49]}  Bd7 {[%clk 0:02:58]} 4. Bxd7+ {[%clk 0:02:49]}  Qxd7 {[%clk 0:02:58]} 5. O-O {[%clk 0:02:50]}  Nf6 {[%clk 0:02:58]} 6. Re1 {[%clk 0:02:50]}  Nc6 {[%clk 0:02:58]} 7. c3 {[%clk 0:02:50]}  e6 {[%clk 0:02:58]} 8. d4 {[%clk 0:02:51]}  cxd4 {[%clk 0:02:59]} 9. cxd4 {[%clk 0:02:52]}  d5 {[%clk 0:02:59]} 10. e5 {[%clk 0:02:51]}  Ne4 {[%clk 0:03:00]} 11. a3 {[%clk 0:02:46]}  Be7 {[%clk 0:03:00]} 12. Qd3 {[%clk 0:02:47]}  O-O {[%clk 0:02:59]} 13. Nbd2 {[%clk 0:02:47]}  Nxd2 {[%clk 0:02:58]} 14. Bxd2 {[%clk 0:02:48]}  Rfc8 {[%clk 0:02:56]} 15. Re3 {[%clk 0:02:37]}  b6 {[%clk 0:02:52]} 16. Ne1 {[%clk 0:02:34]}  Na5 {[%clk 0:02:46]} 17. b3 {[%clk 0:02:27]}  Rc7 {[%clk 0:02:41]} 18. Rh3 {[%clk 0:02:04]}  g6 {[%clk 0:02:41]} 19. Nf3 {[%clk 0:02:04]}  Rac8 {[%clk 0:02:37]} 20. Ng5 {[%clk 0:02:00]}  h5 {[%clk 0:02:21]} 21. Rxh5 {[%clk 0:01:54]}  Qc6 {[%clk 0:02:03]} 22. Re1 {[%clk 0:01:04]}  Qc2 {[%clk 0:02:00]} 23. Rh8+ {[%clk 0:00:24]}  Kg7 {[%clk 0:01:25]} 24. Rh7+ {[%clk 0:00:19]}  Kf8 {[%clk 0:01:24]} 25. Qh3 {[%clk 0:00:16]}  Ke8 {[%clk 0:01:17]} 26. Nxe6 {[%clk 0:00:05]}  fxe6 {[%clk 0:00:56]} 27. Qxe6 {[%clk 0:00:06]}  Qf5 {[%clk 0:00:39]} 28. Rh8+ {[%clk 0:00:06]}  Qf8 {[%clk 0:00:39]} 29. Qxg6+ {[%clk 0:00:06]}  Kd7 {[%clk 0:00:39]} 30. Qg4+ {[%clk 0:00:06]}  Kc6 {[%clk 0:00:39]} 31. Rxf8 {[%clk 0:00:06]}  Bxf8 {[%clk 0:00:39]} 32. Bxa5 {[%clk 0:00:04]}  bxa5 {[%clk 0:00:38]} 33. e6 {[%clk 0:00:05]}  Be7 {[%clk 0:00:37]} 34. f4 {[%clk 0:00:04]}  Kb7 {[%clk 0:00:37]} 35. f5 {[%clk 0:00:05]}  Rc1 {[%clk 0:00:33]} 36. Rxc1 {[%clk 0:00:04]}  Rxc1+ {[%clk 0:00:33]} 37. Kf2 {[%clk 0:00:05]}  Rc2+ {[%clk 0:00:33]} 38. Kf3 {[%clk 0:00:05]}  Rc3+ {[%clk 0:00:33]} 39. Kf4 {[%clk 0:00:04]}  Rxb3 {[%clk 0:00:20]} 40. Qg7 {[%clk 0:00:04]} 1-0